bitfinex-derivatives/quotes_ETHF0:USTF0_20250704
["timestamp","ask_amount","ask_price","bid_price","bid_amount"]
[1751606514841,0.77625,2575.6,2575.5,3.98408]
[1751606515947,0.77625,2575.6,2575.5,3.2078]
[1751606517543,0.77628,2575.5,2575.4,0.77629]
[1751606519150,0.77632,2575.4,2575.3,0.77632]
[1751606519553,0.77636,2575.3,2575.2,0.77635]
[1751606521753,0.77632,2575.4,2575.3,0.77632]
[1751606522445,0.77636,2575.3,2575.2,0.77635]
[1751606523046,0.77637,2575.2,2575.1,8.64806273]
[1751606523352,0.77636,2575.3,2575.2,0.77635]
[1751606523652,1.43162,2575.4,2575.3,0.77634]
[1751606524652,0.77635,2575.3,2575.2,0.77635]
[1751606525949,1.43163,2575.4,2575.3,0.77634]
[1751606528157,0.77636,2575.3,2575.2,0.77634]
[1751606528753,0.6987,2575.5,2575.3,0.77634]
[1751606529055,35.861,2575.7,2575.3,2.64978273]
[1751606529356,0.77628,2575.6,2575.5,0.77626]
[1751606529854,0.77628,2575.6,2575.5,1.43166]
[1751606530055,0.77628,2575.6,2575.5,0.6554]
[1751606530856,0.77628,2575.6,2575.5,1.43168]
[1751606531455,0.77628,2575.6,2575.5,0.6554]
[1751606531852,0.77628,2575.6,2575.5,1.43168]
[1751606532056,0.77628,2575.6,2575.5,0.6554]
[1751606532556,0.77628,2575.6,2575.5,1.43168]
[1751606533051,0.77628,2575.6,2575.5,0.6554]
[1751606537354,0.77631,2575.4,2575.3,3.10008805]
[1751606537560,0.77634,2575.3,2575.2,4.54653805]
[1751606537760,0.77634,2575.3,2575.2,3.77018805]
[1751606538059,0.77634,2575.3,2575.2,3.10008805]
[1751606541163,0.77637,2575.2,2575.1,6.30788805]
[1751606541364,1.42127,2575.2,2575.1,6.30788805]
[1751606542762,1.42127,2575.2,2575.1,3.2078]
[1751606543759,1.42127,2575.2,2575.0,0.6851]
[1751606543957,4.59078273,2575.1,2574.8,3.10008805]
[1751606544156,0.77649,2574.8,2574.7,6.30788805]
[1751606545264,0.77649,2574.8,2574.7,7.08440805]
[1751606545963,6.55958273,2575.1,2574.7,7.08440805]
[1751606545964,0.77648,2574.9,2574.8,0.77648]
[1751606546157,0.77644,2575.0,2574.9,0.77644]
[1751606546353,0.77644,2575.0,2574.9,3.28658273]
[1751606546965,0.77644,2575.0,2574.9,0.6368]
[1751606552262,0.77649,2574.8,2574.7,3.2078]
[1751606552564,0.77649,2574.8,2574.7,3.8684]
[1751606552765,0.77649,2574.8,2574.7,4.64492]
[1751606552966,0.77649,2574.8,2574.7,5.92842]
[1751606553666,0.77649,2574.8,2574.7,5.1519]
[1751606554368,0.77649,2574.8,2574.7,5.92842]
[1751606557068,0.77649,2574.8,2574.7,2.72062]
[1751606559170,5.29570273,2575.1,2574.8,0.77647]
[1751606559171,0.77648,2574.9,2574.8,0.77647]
[1751606559364,0.77648,2574.9,2574.8,2.10307]
[1751606561576,0.77648,2574.9,2574.8,1.3266]
[1751606562067,41.07858273,2574.9,2574.5,6.30788805]
[1751606562268,0.77655,2574.6,2574.5,3.2078]
[1751606563170,3.42633273,2574.6,2574.5,3.2078]
[1751606564074,0.77664,2574.3,2574.2,0.7035]
[1751606564372,0.77664,2574.3,2574.2,2.0413]
[1751606565767,0.77664,2574.3,2574.2,0.7035]
[1751606566175,1.43244,2574.3,2574.2,0.7035]
[1751606568074,0.77673,2574.0,2573.9,2.79395]
[1751606568876,0.77673,2574.0,2573.9,1.3234]
[1751606569176,0.6558,2574.3,2573.9,1.3234]
[1751606569674,0.77673,2574.0,2573.9,2.10015]
[1751606572776,0.77673,2574.0,2573.9,5.30795]
[1751606573776,0.77673,2574.0,2573.7,5.74987078]
[1751606573777,0.77679,2573.8,2573.7,3.10008805]
[1751606574076,0.77682,2573.7,2573.6,3.2078]
[1751606579775,0.7768,2573.8,2573.6,3.2078]
[1751606579979,0.77682,2573.7,2573.6,5.27294]
[1751606580583,0.77682,2573.7,2573.6,5.27293]
[1751606580880,0.77682,2573.7,2573.6,3.2078]
[1751606581380,2.64978273,2573.8,2573.6,3.2078]
[1751606581776,0.77682,2573.7,2573.6,3.2078]
[1751606587077,0.77682,2573.7,2573.6,4.5879]
[1751606587477,0.77682,2573.7,2573.6,3.2078]
[1751606588282,3.42660273,2573.7,2573.6,3.2078]
[1751606592086,3.42660273,2573.7,2573.6,3.19267359]
[1751606592286,0.77703,2573.0,2572.9,6.30788805]
[1751606592482,0.77703,2573.0,2572.9,3.8485]
[1751606595180,0.77703,2573.0,2572.9,3.2078]
[1751606595589,0.77712,2572.7,2572.6,5.1553]
[1751606595886,3.42690273,2572.7,2572.6,3.8519]
[1751606596392,0.7771,2572.8,2572.6,3.8519]
[1751606596589,0.77712,2572.7,2572.6,3.8519]
[1751606597884,0.77711,2572.8,2572.6,4.62905]
[1751606598085,0.77711,2572.8,2572.6,3.8519]
[1751606598283,0.77701,2573.1,2572.6,3.8519]
[1751606598486,3.2078,2573.2,2572.9,0.77705]
[1751606598686,0.77703,2573.1,2573.0,0.6509]
[1751606598886,3.42681273,2573.1,2573.0,0.6509]
[1751606599083,7.64978273,2573.1,2572.6,3.2078]
[1751606599289,3.42690273,2572.7,2572.6,3.2078]
[1751606601789,0.77708,2572.9,2572.7,0.77712]
[1751606601992,1.3466,2573.0,2572.6,3.2078]
[1751606602294,10.921,2573.0,2572.9,0.77706]
[1751606603196,10.921,2573.0,2572.9,2.85766]
[1751606603694,13.57078273,2573.4,2572.9,5.2884]
[1751606603883,0.77695,2573.3,2573.1,0.77698]
[1751606604282,5.85758273,2573.2,2572.6,3.2078]
[1751606604486,5.85758273,2573.2,2572.7,0.7047]
[1751606604487,2.64978273,2572.9,2572.7,0.7047]
[1751606604691,2.64978273,2572.9,2572.7,2.7654]
[1751606605294,0.77709,2572.8,2572.7,1.9883]
[1751606607590,0.77709,2572.8,2572.7,2.76542]
[1751606608798,3.31918273,2573.1,2572.8,0.77708]
[1751606608999,0.77706,2572.9,2572.8,1.3059]
[1751606609396,0.77706,2572.9,2572.8,2.08299]
[1751606609795,0.77706,2572.9,2572.8,1.3059]
[1751606609995,0.77706,2572.9,2572.8,2.08299]
[1751606610192,3.31918273,2573.1,2572.8,2.08299]
[1751606610395,0.77706,2572.9,2572.8,2.08299]
[1751606610894,0.77706,2572.9,2572.8,1.3059]
[1751606612295,0.77706,2572.9,2572.7,4.6896]
[1751606612296,0.77709,2572.8,2572.7,3.9125]
[1751606612600,0.77709,2572.8,2572.7,0.7047]
[1751606613904,46.64401,2573.5,2572.7,3.9125]
[1751606614203,0.77703,2573.0,2572.9,0.77704]
[1751606614398,0.77703,2573.0,2572.9,1.47464]
[1751606614703,0.77703,2573.0,2572.9,2.85184]
[1751606614901,0.77702,2573.1,2573.0,0.77703]
[1751606615101,0.77702,2573.1,2573.0,1.42443]
[1751606619299,0.77702,2573.1,2573.0,0.6474]
[1751606619498,0.6761,2573.4,2573.3,0.77694]
[1751606619704,0.77691,2573.5,2573.3,0.77692]
[1751606620004,2.64978273,2573.6,2573.2,3.2078]
[1751606620203,0.77691,2573.4,2573.3,0.7001]
[1751606620812,3.42669273,2573.4,2573.3,0.7001]
[1751606623107,0.7769,2573.5,2573.3,1.47702]
[1751606623809,0.7769,2573.5,2573.4,0.77691]
[1751606624006,1.46307,2573.6,2573.4,0.77691]
[1751606624405,1.46307,2573.6,2573.5,0.77688]
[1751606624606,0.77691,2573.4,2573.3,1.47702]
[1751606625310,0.7769,2573.5,2573.3,1.47702]
[1751606625706,0.77691,2573.4,2573.3,1.47702]
[1751606626911,0.7769,2573.5,2573.3,0.7001]
[1751606627109,0.7769,2573.5,2573.3,1.47701]
[1751606627511,0.77691,2573.4,2573.3,1.47701]
[1751606628217,0.7769,2573.5,2573.3,1.47701]
[1751606628407,0.7769,2573.5,2573.4,0.77691]
[1751606628706,0.77688,2573.6,2573.4,0.77691]
[1751606628913,0.77691,2573.4,2573.3,1.47704]
[1751606629706,0.77689,2573.5,2573.4,0.7769]
[1751606630106,0.77691,2573.4,2573.3,1.47702]
[1751606630707,0.7769,2573.5,2573.4,0.77691]
[1751606631209,0.77691,2573.4,2573.3,1.47702]
[1751606631913,0.7769,2573.5,2573.4,0.77691]
[1751606632513,0.7769,2573.5,2573.0,7.69243078]
[1751606632514,1.94228,2573.4,2572.9,6.30788805]
[1751606632713,0.77702,2573.1,2573.0,0.661]
[1751606635012,0.77702,2573.1,2573.0,1.43803]
[1751606635214,0.77703,2573.0,2572.9,3.2078]
[1751606635515,0.77711,2572.8,2572.6,7.08500805]
[1751606635716,0.77711,2572.8,2572.7,0.6884]
[1751606636412,0.77711,2572.8,2572.7,1.46552]
[1751606636612,0.77711,2572.8,2572.7,2.75192]
[1751606636912,0.77711,2572.8,2572.7,1.9748]
[1751606637219,0.77711,2572.8,2572.7,2.75192]
[1751606640517,2.64978273,2573.1,2573.0,0.77701]
[1751606640518,0.77701,2573.1,2573.0,0.77701]
[1751606640718,0.77701,2573.1,2572.7,7.72467078]
[1751606640719,0.77703,2573.0,2572.9,3.2078]
[1751606640919,0.77703,2573.0,2572.9,1.2856]
[1751606641420,0.77712,2572.7,2572.6,6.30788805]
[1751606642120,0.77712,2572.7,2572.6,3.2078]
[1751606642308,0.77712,2572.7,2572.6,3.98495]
[1751606642515,0.77712,2572.7,2572.6,3.2078]
[1751606643410,0.77712,2572.7,2572.6,3.98495]
[1751606644817,0.77712,2572.7,2572.6,3.2078]
[1751606645218,0.77712,2572.7,2572.6,3.98495]
[1751606645614,0.77712,2572.7,2572.6,3.2078]
[1751606645817,0.77712,2572.7,2572.6,3.98495]
[1751606646322,0.77712,2572.7,2572.6,3.2078]
[1751606649024,0.7772,2572.5,2572.3,1.41442]
[1751606649224,0.77718,2572.5,2572.3,1.41442]
[1751606649522,0.77718,2572.5,2572.4,0.77721]
[1751606650326,0.6673,2572.6,2572.4,0.77721]
[1751606650624,0.77718,2572.5,2572.4,0.77721]
[1751606650826,0.77721,2572.4,2572.3,1.41444]
[1751606651030,0.7772,2572.5,2572.3,1.41444]
[1751606651623,0.7772,2572.5,2572.4,0.77721]
[1751606652325,1.44447,2572.6,2572.4,0.77721]
[1751606652516,0.77718,2572.5,2572.4,0.77721]
[1751606653523,0.77718,2572.5,2572.3,1.41442]
[1751606653729,0.6673,2572.6,2572.4,0.77721]
[1751606653928,0.77719,2572.5,2572.4,0.77721]
[1751606654634,1.44447,2572.6,2572.5,0.77718]
[1751606654928,0.77718,2572.5,2572.4,0.77719]
[1751606655121,1.44446,2572.6,2572.4,0.77721]
[1751606655322,0.6673,2572.6,2572.3,0.6372]
[1751606655518,1.44447,2572.6,2572.5,0.77718]
[1751606655724,0.77718,2572.5,2572.4,0.77719]
[1751606656129,1.44447,2572.6,2572.4,0.77719]
[1751606656323,0.77718,2572.5,2572.4,0.77719]
[1751606656922,1.44447,2572.6,2572.5,0.77718]
[1751606657121,0.77721,2572.4,2572.3,2.69572]
[1751606657833,0.7772,2572.5,2572.4,0.77721]
[1751606659938,0.77718,2572.5,2572.4,0.77719]
[1751606660737,1.44447,2572.6,2572.5,0.77718]
[1751606661138,0.7772,2572.5,2572.4,0.7772]
[1751606661841,0.77721,2572.4,2572.3,1.41443]
[1751606662643,0.77721,2572.4,2572.3,0.6372]
[1751606663036,0.77721,2572.4,2572.3,1.41444]
[1751606663541,0.77721,2572.4,2572.3,1.41442]
[1751606664745,0.7772,2572.5,2572.4,0.77721]
[1751606665240,0.7772,2572.5,2572.3,4.62222]
[1751606665542,0.7772,2572.5,2572.4,0.77721]
[1751606665844,0.6673,2572.6,2572.4,0.77721]
[1751606666042,0.77718,2572.5,2572.4,0.77721]
[1751606666238,0.77718,2572.5,2572.3,4.62222]
[1751606666544,0.77721,2572.4,2572.3,3.845]
[1751606668641,0.77721,2572.4,2572.3,4.62224]
[1751606668841,0.77721,2572.4,2572.3,3.845]
[1751606673848,0.77721,2572.4,2572.3,4.62224]
[1751606675253,0.77721,2572.4,2572.3,3.845]
[1751606676049,0.77721,2572.4,2572.3,4.62224]
[1751606676256,0.77718,2572.5,2572.3,3.845]
[1751606676554,0.77718,2572.5,2572.4,2.11989]
[1751606677451,0.77718,2572.5,2572.4,1.3427]
[1751606678150,0.77721,2572.4,2572.3,4.62222]
[1751606678350,0.77721,2572.4,2572.3,3.845]
[1751606678958,0.77721,2572.4,2572.3,4.62224]
[1751606679156,0.77721,2572.4,2572.3,3.845]
[1751606682755,0.77721,2572.4,2572.3,2.22282]
[1751606682756,3.42699273,2572.4,2572.3,2.22282]
[1751606682957,13.78379633,2572.4,2571.9,6.97519811]
[1751606683159,3.42711273,2572.0,2571.9,3.10008805]
[1751606683364,13.62378273,2572.0,2571.7,3.2078]
[1751606683566,3.42717273,2571.8,2571.7,3.2078]
[1751606683963,3.42717273,2571.8,2571.7,3.8834]
[1751606684159,3.42717273,2571.8,2571.7,0.6756]
[1751606684370,0.77748,2571.5,2571.4,0.6679]
[1751606684665,0.77748,2571.5,2571.4,2.6197]
[1751606685062,4.59318273,2572.0,2571.4,5.26948273]
[1751606685263,0.77746,2571.6,2571.5,1.2762]
[1751606687263,0.77745,2571.6,2571.5,2.05367]
[1751606687463,0.77744,2571.7,2571.6,0.77745]
[1751606688068,0.77742,2571.7,2571.6,6.63502273]
[1751606688763,0.77742,2571.7,2571.6,5.85758273]
[1751606688963,0.77742,2571.7,2571.6,3.2078]
[1751606689164,0.77742,2571.7,2571.6,4.5172]
[1751606690170,3.2078,2572.1,2571.6,4.5172]
[1751606690369,0.77739,2571.8,2571.7,2.0334]
[1751606690564,0.77739,2571.8,2571.7,0.6892]
[1751606693363,0.77739,2571.8,2571.7,1.46662]
[1751606693871,0.77739,2571.8,2571.7,0.6892]
[1751606697667,3.42717273,2571.8,2571.7,0.6892]
[1751606698668,0.77742,2571.7,2571.6,3.2078]
[1751606702666,0.77742,2571.7,2571.6,4.583]
[1751606703273,0.77742,2571.7,2571.6,5.36045]
[1751606703471,0.77741,2571.8,2571.6,5.36045]
[1751606703673,0.77741,2571.8,2571.7,2.15262]
[1751606703977,0.77739,2571.8,2571.7,1.3752]
[1751606704372,0.77738,2571.9,2571.8,0.77737]
[1751606704574,0.77738,2571.9,2571.8,1.41337]
[1751606704979,35.396,2572.1,2571.8,0.636]
[1751606705179,0.77736,2571.9,2571.8,1.41338]
[1751606705477,0.77736,2571.9,2571.8,0.636]
[1751606705681,0.77742,2571.7,2571.6,3.2078]
[1751606708778,0.77745,2571.6,2571.5,0.6445]
[1751606709180,0.6759,2571.9,2571.5,0.6445]
[1751606709381,10.967,2571.9,2571.6,2.64978273]
[1751606709583,0.77739,2571.8,2571.7,0.77742]
[1751606710082,0.77739,2571.8,2571.6,0.77743]
[1751606710272,0.77745,2571.6,2571.5,0.6445]
[1751606710982,0.77744,2571.7,2571.6,0.77745]
[1751606712479,0.77741,2571.8,2571.7,0.77741]
[1751606712681,2.64978273,2572.0,2571.6,3.10008805]
[1751606712881,0.77742,2571.8,2571.7,3.2078]
[1751606713182,0.77742,2571.8,2571.7,3.98522]
[1751606713483,0.77742,2571.8,2571.7,3.2078]
[1751606713685,0.77742,2571.8,2571.7,3.98522]
[1751606715285,0.77735,2572.0,2571.9,0.77735]
[1751606721987,0.77733,2572.1,2572.0,0.77733]
[1751606722181,0.77729,2572.2,2572.1,0.7773]
[1751606722387,0.7773,2572.1,2572.0,0.77731]
[1751606722585,0.7773,2572.1,2572.0,2.09651]
[1751606722887,0.77729,2572.2,2572.1,0.7773]
[1751606723586,0.7773,2572.1,2572.0,2.09652]
[1751606723986,0.77728,2572.2,2572.1,0.77728]
[1751606726286,10.966,2572.4,2572.0,4.527]
[1751606726491,0.77724,2572.3,2572.2,0.77724]
[1751606726891,0.77723,2572.4,2572.3,0.77724]
[1751606727086,0.77724,2572.3,2572.2,0.77725]
[1751606729395,0.77724,2572.3,2572.2,0.77727]
[1751606730689,0.77724,2572.3,2572.2,1.45257]
[1751606732691,0.77723,2572.4,2572.3,0.77724]
[1751606732888,55.978,2572.6,2572.2,0.6753]
[1751606733091,0.77722,2572.4,2572.3,2.17033]
[1751606734690,0.7772,2572.5,2572.4,0.77721]
[1751606735488,0.77717,2572.6,2572.5,0.77718]
[1751606735694,36.13315,2572.6,2572.5,0.77716]
[1751606736096,36.13315,2572.6,2572.5,0.6885]
[1751606736397,0.77715,2572.6,2572.5,0.6885]
[1751606738297,48.96878273,2572.7,2572.3,5.37812]
[1751606738497,0.77721,2572.4,2572.3,3.2078]
[1751606739502,0.77721,2572.4,2572.3,3.98504]
[1751606740407,4.75818273,2572.5,2572.4,0.77721]
[1751606740704,0.77721,2572.4,2572.3,3.98502]
[1751606741204,4.08887273,2572.5,2572.4,0.77721]
[1751606741594,1.43909,2572.5,2572.4,0.77721]
[1751606743099,0.77721,2572.4,2572.3,3.2078]
[1751606743300,1.4391,2572.5,2572.4,0.77721]
[1751606744500,0.77721,2572.4,2572.3,3.98502]
[1751606746904,0.77721,2572.4,2572.3,3.2078]
[1751606747402,0.77721,2572.4,2572.3,3.98504]
[1751606750507,1.4391,2572.5,2572.4,0.77721]
[1751606750701,10.966,2572.7,2572.3,5.85758273]
[1751606750907,0.77712,2572.7,2572.6,0.77715]
[1751606751295,0.77712,2572.7,2572.6,1.41495]
[1751606751702,3.8942,2572.9,2572.6,0.6378]
[1751606751903,55.984,2573.2,2572.7,2.64978273]
[1751606752108,0.98345287,2573.1,2572.9,2.64978273]
[1751606752406,0.777,2573.1,2573.0,1.41481]
[1751606752606,0.777,2573.1,2573.0,0.6378]
[1751606752802,0.777,2573.1,2573.0,1.41483]
[1751606752996,0.777,2573.1,2573.0,0.6378]
[1751606755408,0.777,2573.1,2573.0,1.41483]
[1751606756309,0.777,2573.1,2573.0,0.6378]
[1751606757010,0.777,2573.1,2573.0,1.41483]
[1751606757210,0.777,2573.1,2573.0,0.6378]
[1751606758213,0.777,2573.1,2573.0,1.41483]
[1751606758410,3.42678273,2573.2,2573.0,1.41483]
[1751606758614,10.954,2573.3,2573.1,0.777]
[1751606759014,10.954,2573.3,2573.0,0.6378]
[1751606759015,0.77699,2573.2,2573.0,1.41481]
[1751606759609,0.77699,2573.2,2573.1,0.777]
[1751606759810,0.77699,2573.2,2573.0,1.41481]
[1751606761116,0.77699,2573.2,2573.1,0.777]
[1751606761715,11.73095,2573.3,2573.2,0.77697]
[1751606761906,11.73096,2573.3,2573.1,0.77699]
[1751606762110,0.77697,2573.2,2573.1,0.77699]
[1751606762817,11.73096,2573.3,2573.2,0.77697]
[1751606763022,0.77697,2573.2,2573.1,0.77698]
[1751606763215,11.73096,2573.3,2573.1,0.77698]
[1751606763419,0.77697,2573.2,2573.1,0.77698]
[1751606764314,11.73096,2573.3,2573.1,0.77698]
[1751606764620,0.77697,2573.2,2573.1,0.77698]
[1751606765020,0.777,2573.1,2573.0,5.94741]
[1751606766222,0.77699,2573.2,2573.1,0.777]
[1751606766417,0.777,2573.1,2573.0,5.94741]
[1751606767422,0.77699,2573.2,2573.0,5.94741]
[1751606767622,0.77699,2573.2,2573.1,0.777]
[1751606768522,0.77699,2573.2,2573.1,0.77699]
[1751606769321,0.77699,2573.2,2573.1,3.98479]
[1751606769823,0.77699,2573.2,2573.1,3.2078]
[1751606770022,0.77699,2573.2,2573.1,3.9848]
[1751606770222,0.77699,2573.2,2573.1,3.2078]
[1751606770720,0.77699,2573.2,2573.1,3.9848]
[1751606771524,14.38074273,2573.3,2573.2,0.77697]
[1751606771822,0.77697,2573.2,2573.1,3.98478]
[1751606774019,0.77697,2573.2,2573.1,3.98478]
[1751606774224,11.73094,2573.3,2573.2,0.77697]
[1751606774721,0.77697,2573.2,2573.1,5.34418]
[1751606775924,11.73096,2573.3,2573.2,0.77697]
[1751606776318,0.77697,2573.2,2573.1,5.34418]
[1751606778625,11.73096,2573.3,2573.2,0.77697]
[1751606778828,0.77697,2573.2,2573.1,3.2078]
[1751606779028,0.77697,2573.2,2573.1,3.9848]
[1751606779927,0.77697,2573.2,2573.1,3.2078]
[1751606781826,0.77697,2573.2,2573.1,3.9848]
[1751606782827,0.77697,2573.2,2573.1,3.2078]
[1751606783726,0.777,2573.1,2573.0,4.51489805]
[1751606783926,0.77698,2573.2,2573.1,0.77697]
[1751606784122,0.77697,2573.2,2573.1,0.777]
[1751606784327,0.77697,2573.2,2573.1,2.1141]
[1751606786930,0.77697,2573.2,2573.1,5.3219]
[1751606790027,0.77697,2573.2,2573.1,3.2078]
[1751606794931,0.77697,2573.2,2573.1,3.2078]
[1751606798125,0.77706,2572.9,2572.8,5.82267805]
[1751606798325,0.77706,2572.9,2572.8,9.03047805]
[1751606799027,35.3,2573.1,2572.8,8.25338805]
[1751606799331,0.77705,2573.0,2572.9,0.77705]
[1751606799532,36.07702,2573.1,2572.9,2.09355]
[1751606799730,0.77703,2573.0,2572.9,2.09355]
[1751606799932,36.07702,2573.1,2572.9,2.09355]
[1751606800133,36.07702,2573.1,2573.0,2.09353]
[1751606800334,36.07702,2573.1,2573.0,1.3165]
[1751606802627,36.07702,2573.1,2573.0,4.5243]
[1751606803835,36.07702,2573.1,2573.0,3.2078]
[1751606804737,0.77706,2572.9,2572.8,4.51405805]
[1751606804935,0.77706,2572.9,2572.8,5.82375805]
[1751606805336,0.77706,2572.9,2572.8,9.03155805]
[1751606805837,0.77706,2572.9,2572.8,5.82375805]
[1751606806040,0.77706,2572.9,2572.8,8.25448805]
[1751606806332,3.42684273,2572.9,2572.8,3.10008805]
[1751606806537,0.77709,2572.8,2572.7,3.10008805]
[1751606806837,0.77709,2572.8,2572.6,1.3363]
[1751606806838,0.77712,2572.7,2572.6,4.43638805]
[1751606807032,0.77712,2572.7,2572.6,1.3363]
[1751606807232,0.77715,2572.6,2572.5,3.2078]
[1751606807433,1.47085,2572.6,2572.5,3.2078]
[1751606809731,36.07615,2572.6,2572.5,3.2078]
[1751606811032,0.77724,2572.3,2572.2,0.6561]
[1751606811234,36.07824,2572.3,2572.2,0.6561]
[1751606811533,0.77727,2572.2,2572.1,3.2078]
[1751606811734,3.42705273,2572.2,2572.1,3.2078]
[1751606812037,0.77736,2571.9,2571.8,0.6654]
[1751606812234,0.77739,2571.8,2571.7,3.2078]
[1751606816747,35.304,2571.9,2571.7,3.2078]
[1751606816942,36.08137,2571.9,2571.8,2.0648]
[1751606817438,3.2078,2572.3,2571.8,4.71458273]
[1751606817633,35.307,2572.4,2572.2,2.64978273]
[1751606817833,36.08421,2572.4,2572.3,1.9837]
[1751606818238,0.77719,2572.5,2572.3,1.9837]
[1751606818436,36.08421,2572.4,2572.3,1.9837]
[1751606820541,36.08421,2572.4,2572.3,0.6515]
[1751606822039,1.94311,2572.3,2571.4,3.10008805]
[1751606822244,3.42726273,2571.5,2571.4,3.10008805]
[1751606822536,0.77757,2571.2,2571.1,3.10008805]
[1751606822845,0.77769,2570.9,2570.7,9.01708805]
[1751606823143,0.77769,2570.9,2570.8,1.3418]
[1751606823542,0.77765,2571.0,2570.8,1.3418]
[1751606823744,38.18578273,2571.2,2570.8,1.3418]
[1751606823943,0.77766,2571.0,2570.8,1.3418]
[1751606824744,0.77766,2571.0,2570.8,2.11949]
[1751606825142,0.77766,2570.9,2570.8,1.3418]
[1751606827246,0.77766,2570.9,2570.8,2.1195]
[1751606827643,5.15164,2571.4,2570.8,8.99158273]
[1751606827644,3.2078,2571.4,2570.8,8.99158273]
[1751606827844,0.77758,2571.2,2571.0,0.77761]
[1751606828043,0.77758,2571.2,2571.1,1.2821]
[1751606828249,0.77758,2571.2,2571.1,2.0597]
[1751606828648,35.53,2571.4,2571.1,1.2821]
[1751606828847,35.53,2571.4,2571.2,0.77756]
[1751606829147,36.30751,2571.4,2571.3,1.2821]
[1751606829347,36.30751,2571.4,2571.3,2.05964]
[1751606829749,35.53,2571.4,2571.3,2.05964]
[1751606830448,36.30751,2571.4,2571.3,2.05964]
[1751606831450,0.77751,2571.4,2571.3,2.05964]
[1751606831649,36.30551,2571.4,2571.3,2.05964]
[1751606831848,38.95529273,2571.4,2571.3,1.2821]
[1751606832149,38.95529273,2571.4,2571.3,2.05964]
[1751606834349,38.95529273,2571.4,2571.3,1.2821]
[1751606834748,38.95529273,2571.4,2571.3,2.05964]
[1751606835147,35.522,2571.4,2571.3,2.05962]
[1751606835548,11.7845,2571.5,2571.4,0.77751]
[1751606835750,3.2078,2571.7,2571.5,0.77747]
[1751606835947,0.77745,2571.6,2571.4,2.13319]
[1751606836153,0.77745,2571.6,2571.4,1.3557]
[1751606836352,0.77745,2571.6,2571.5,0.77748]
[1751606836950,36.29044,2571.7,2571.5,0.77748]
[1751606837151,36.29044,2571.7,2571.5,0.77746]
[1751606837357,0.77745,2571.6,2571.5,0.77746]
[1751606838259,0.77748,2571.5,2571.3,0.7006]
[1751606838455,38.17878273,2571.4,2571.3,1.47814]
[1751606839258,38.95629273,2571.4,2571.3,1.47814]
[1751606840355,38.17878273,2571.4,2571.3,1.47814]
[1751606841850,38.95629273,2571.4,2571.3,1.47814]
[1751606842447,38.95629273,2571.4,2571.2,0.692]
[1751606842448,0.77754,2571.3,2571.2,1.46955]
[1751606842658,38.95631273,2571.4,2571.3,0.77754]
[1751606843359,1.41473,2571.7,2571.2,2.63591]
[1751606843558,0.77743,2571.7,2571.6,0.77745]
[1751606843751,36.29543,2571.7,2571.6,0.77745]
[1751606843952,36.29543,2571.7,2571.5,0.77746]
[1751606843953,0.77747,2571.6,2571.5,0.77746]
[1751606845955,38.94522273,2571.7,2571.6,0.77745]
[1751606846155,3.42722273,2571.7,2571.6,0.77745]
[1751606846461,38.94922273,2571.7,2571.6,0.77745]
[1751606848764,3.42722273,2571.7,2571.6,0.77745]
[1751606849065,38.94022273,2571.7,2571.6,0.77745]
[1751606852361,38.16278273,2571.7,2571.6,0.77745]
[1751606852761,2.64978273,2571.7,2571.6,0.77745]
[1751606852962,38.15178273,2571.7,2571.6,0.77745]
[1751606853376,35.502,2571.7,2571.6,0.77745]
[1751606853578,2.64978273,2571.8,2571.7,0.77742]
[1751606853773,67.76838,2571.9,2571.8,0.77739]
[1751606853972,103.25738,2571.9,2571.8,0.77739]
[1751606854674,103.25738,2571.9,2571.3,10.90152078]
[1751606854971,55.983,2571.9,2571.8,0.77739]
[1751606855172,92.24536,2571.9,2571.8,0.77739]
[1751606856477,56.76036,2571.9,2571.8,0.77739]
[1751606856678,92.23936,2571.9,2571.8,0.77739]
[1751606859581,55.983,2571.9,2571.8,0.77739]
[1751606859778,3.2078,2572.3,2571.7,4.59334273]
[1751606859972,3.2078,2572.3,2572.2,0.77727]
[1751606860178,14.99738273,2572.5,2571.9,1.94338]
[1751606860179,15.77458273,2572.5,2572.4,0.77721]
[1751606860480,0.77722,2572.4,2572.3,0.77722]
[1751606861075,50.47538273,2572.5,2572.4,0.77721]
[1751606861076,4.78458273,2572.5,2572.4,0.77721]
[1751606861275,39.48238273,2572.5,2572.4,0.77721]
[1751606861578,3.2078,2572.6,2572.5,0.77718]
[1751606861777,38.6848,2572.6,2572.5,0.77718]
[1751606863182,58.64578273,2572.7,2572.6,0.77715]
[1751606863377,94.11578273,2572.7,2572.6,0.77715]
[1751606863778,10.989,2572.8,2572.7,0.77712]
[1751606863975,46.459,2572.8,2572.7,0.77712]
[1751606864172,47.23609,2572.8,2572.7,0.77712]
[1751606864579,46.459,2572.8,2572.7,0.77712]
[1751606864784,47.23609,2572.8,2572.7,0.77712]
[1751606865281,47.23009,2572.8,2572.7,0.77712]
[1751606865484,47.22709,2572.8,2572.6,0.77713]
[1751606865882,0.77712,2572.7,2572.6,0.77713]
[1751606867685,2.64978273,2572.7,2572.2,3.2078]
[1751606867985,0.77719,2572.5,2572.4,0.77719]
[1751606868283,0.77722,2572.4,2572.3,0.77722]
[1751606869382,0.77724,2572.3,2572.2,3.2078]
[1751606870886,0.77724,2572.3,2572.2,3.98507]
[1751606871080,36.1629,2572.5,2572.4,0.77721]
[1751606871578,35.519,2572.6,2572.5,0.77718]